{"text_format":"3","workbook":"xlsx","n_sheets":1,"sheets":["Годовой табель рабочего времени"],"not_rendered":{"defined_names":2},"read":"whole","date_system":"1900"}

{"sheet":"Годовой табель рабочего времени","index":0,"n_rows":140,"n_cols":12,"rows_kept":140,"merged":[[0,1,1,11],[2,6,2,7],[2,8,2,9],[5,1,5,11],[15,3,15,4],[26,3,26,4],[37,3,37,4],[39,1,39,11],[49,3,49,4],[60,3,60,4],[71,3,71,4],[73,1,73,11],[83,3,83,4],[94,3,94,4],[105,3,105,4],[107,1,107,11],[117,3,117,4],[128,3,128,4],[139,3,139,4]]}
[null,"Табель сотрудника"]
[]
[null,"Имя сотрудника:",null,"Электронная почта:",null,null,"Итого с начала года:"]
[null,"Руководитель:",null,"Телефон:",null,null,"Нормативные часы:",{"$f":"SUM(C16,C27,C38,C50,C61,C72,C84,C95,C106,C118,C129,C140)","v":0},"Сверхурочные часы:",{"$f":"SUM(F16,F27,F38,F50,F61,F72,F84,F95,F106,F118,F129,F140)","v":0},"Итого:",{"$f":"SUM(H4,J4)","v":0}]
[]
[null,"Январь, февраль, март      Табель сотрудника (за день, неделю, месяц, год)"]
[null,"Январь","Неделя 1","Сверхурочные","Неделя 2","Сверхурочные ","Неделя 3","Сверхурочные  ","Неделя 4","Сверхурочные   ","Неделя 5","Сверхурочные    "]
[null,"Понедельник"]
[null,"Вторник"]
[null,"Среда"]
[null,"Четверг"]
[null,"Пятница"]
[null,"Суббота"]
[null,"Воскресенье"]
[null,"Итого часов за неделю",{"$f":"SUBTOTAL(109,Январь[Неделя 1])","v":0},{"$f":"SUBTOTAL(109,Январь[Сверхурочные])","v":0},{"$f":"SUBTOTAL(109,Январь[Неделя 2])","v":0},{"$f":"SUBTOTAL(109,Январь[[Сверхурочные ]])","v":0},{"$f":"SUBTOTAL(109,Январь[Неделя 3])","v":0},{"$f":"SUBTOTAL(109,Январь[[Сверхурочные  ]])","v":0},{"$f":"SUBTOTAL(109,Январь[Неделя 4])","v":0},{"$f":"SUBTOTAL(109,Январь[[Сверхурочные   ]])","v":0},{"$f":"SUBTOTAL(109,Январь[Неделя 5])","v":0},{"$f":"SUBTOTAL(109,Январь[[Сверхурочные    ]])","v":0}]
[null,"Итого за январь: Нормативные часы",{"$f":"SUM(Январь[[#Totals],[Неделя 1]],Январь[[#Totals],[Неделя 2]],Январь[[#Totals],[Неделя 3]],Январь[[#Totals],[Неделя 4]],Январь[[#Totals],[Неделя 5]])","v":0},"Итого за январь: Сверхурочные",null,{"$f":"SUM(Январь[[#Totals],[Сверхурочные]],Январь[[#Totals],[Сверхурочные ]],Январь[[#Totals],[Сверхурочные  ]],Январь[[#Totals],[Сверхурочные   ]],Январь[[#Totals],[Сверхурочные    ]])","v":0}]
[]
[null,"Февраль","Неделя 1","Сверхурочные","Неделя 2","Сверхурочные ","Неделя 3","Сверхурочные  ","Неделя 4","Сверхурочные   ","Неделя 5","Сверхурочные    "]
[null,"Понедельник"]
[null,"Вторник"]
[null,"Среда"]
[null,"Четверг"]
[null,"Пятница"]
[null,"Суббота"]
[null,"Воскресенье"]
[null,"Итого часов за неделю",{"$f":"SUBTOTAL(109,Февраль[Неделя 1])","v":0},{"$f":"SUBTOTAL(109,Февраль[Сверхурочные])","v":0},{"$f":"SUBTOTAL(109,Февраль[Неделя 2])","v":0},{"$f":"SUBTOTAL(109,Февраль[[Сверхурочные ]])","v":0},{"$f":"SUBTOTAL(109,Февраль[Неделя 3])","v":0},{"$f":"SUBTOTAL(109,Февраль[[Сверхурочные  ]])","v":0},{"$f":"SUBTOTAL(109,Февраль[Неделя 4])","v":0},{"$f":"SUBTOTAL(109,Февраль[[Сверхурочные   ]])","v":0},{"$f":"SUBTOTAL(109,Февраль[Неделя 5])","v":0},{"$f":"SUBTOTAL(109,Февраль[[Сверхурочные    ]])","v":0}]
[null,"Итого за февраль: Нормативные часы",{"$f":"SUM(Февраль[[#Totals],[Неделя 1]],Февраль[[#Totals],[Неделя 2]],Февраль[[#Totals],[Неделя 3]],Февраль[[#Totals],[Неделя 4]],Февраль[[#Totals],[Неделя 5]])","v":0},"Итого за февраль: Сверхурочные",null,{"$f":"SUM(Февраль[[#Totals],[Сверхурочные]],Февраль[[#Totals],[Сверхурочные ]],Февраль[[#Totals],[Сверхурочные  ]],Февраль[[#Totals],[Сверхурочные   ]],Февраль[[#Totals],[Сверхурочные    ]])","v":0}]
[]
[null,"Март","Неделя 1","Сверхурочные","Неделя 2","Сверхурочные ","Неделя 3","Сверхурочные  ","Неделя 4","Сверхурочные   ","Неделя 5","Сверхурочные    "]
[null,"Понедельник"]
[null,"Вторник"]
[null,"Среда"]
[null,"Четверг"]
[null,"Пятница"]
[null,"Суббота"]
[null,"Воскресенье"]
[null,"Итого часов за неделю",{"$f":"SUBTOTAL(109,Март[Неделя 1])","v":0},{"$f":"SUBTOTAL(109,Март[Сверхурочные])","v":0},{"$f":"SUBTOTAL(109,Март[Неделя 2])","v":0},{"$f":"SUBTOTAL(109,Март[[Сверхурочные ]])","v":0},{"$f":"SUBTOTAL(109,Март[Неделя 3])","v":0},{"$f":"SUBTOTAL(109,Март[[Сверхурочные  ]])","v":0},{"$f":"SUBTOTAL(109,Март[Неделя 4])","v":0},{"$f":"SUBTOTAL(109,Март[[Сверхурочные   ]])","v":0},{"$f":"SUBTOTAL(109,Март[Неделя 5])","v":0},{"$f":"SUBTOTAL(109,Март[[Сверхурочные    ]])","v":0}]
[null,"Итого за март: Нормативные часы",{"$f":"SUM(Март[[#Totals],[Неделя 1]],Март[[#Totals],[Неделя 2]],Март[[#Totals],[Неделя 3]],Март[[#Totals],[Неделя 4]],Март[[#Totals],[Неделя 5]])","v":0},"Итого за март: Сверхурочные",null,{"$f":"SUM(Март[[#Totals],[Сверхурочные]],Март[[#Totals],[Сверхурочные ]],Март[[#Totals],[Сверхурочные  ]],Март[[#Totals],[Сверхурочные   ]],Март[[#Totals],[Сверхурочные    ]])","v":0}]
[]
[null,"Апрель, май, июнь      Табель сотрудника (за день, неделю, месяц, год)"]
[null,"Апрель","Неделя 1","Сверхурочные","Неделя 2","Сверхурочные ","Неделя 3","Сверхурочные  ","Неделя 4","Сверхурочные   ","Неделя 5","Сверхурочные    "]
[null,"Понедельник"]
[null,"Вторник"]
[null,"Среда"]
[null,"Четверг"]
[null,"Пятница"]
[null,"Суббота"]
[null,"Воскресенье"]
[null,"Итого часов за неделю",{"$f":"SUBTOTAL(109,Апрель[Неделя 1])","v":0},{"$f":"SUBTOTAL(109,Апрель[Сверхурочные])","v":0},{"$f":"SUBTOTAL(109,Апрель[Неделя 2])","v":0},{"$f":"SUBTOTAL(109,Апрель[[Сверхурочные ]])","v":0},{"$f":"SUBTOTAL(109,Апрель[Неделя 3])","v":0},{"$f":"SUBTOTAL(109,Апрель[[Сверхурочные  ]])","v":0},{"$f":"SUBTOTAL(109,Апрель[Неделя 4])","v":0},{"$f":"SUBTOTAL(109,Апрель[[Сверхурочные   ]])","v":0},{"$f":"SUBTOTAL(109,Апрель[Неделя 5])","v":0},{"$f":"SUBTOTAL(109,Апрель[[Сверхурочные    ]])","v":0}]
[null,"Итого за апрель: Нормативные часы",{"$f":"SUM(Апрель[[#Totals],[Неделя 1]],Апрель[[#Totals],[Неделя 2]],Апрель[[#Totals],[Неделя 3]],Апрель[[#Totals],[Неделя 4]],Апрель[[#Totals],[Неделя 5]])","v":0},"Итого за апрель: Сверхурочные",null,{"$f":"SUM(Апрель[[#Totals],[Сверхурочные]],Апрель[[#Totals],[Сверхурочные ]],Апрель[[#Totals],[Сверхурочные  ]],Апрель[[#Totals],[Сверхурочные   ]],Апрель[[#Totals],[Сверхурочные    ]])","v":0}]
[]
[null,"Май","Неделя 1","Сверхурочные","Неделя 2","Сверхурочные ","Неделя 3","Сверхурочные  ","Неделя 4","Сверхурочные   ","Неделя 5","Сверхурочные    "]
[null,"Понедельник"]
[null,"Вторник"]
[null,"Среда"]
[null,"Четверг"]
[null,"Пятница"]
[null,"Суббота"]
[null,"Воскресенье"]
[null,"Итого часов за неделю",{"$f":"SUBTOTAL(109,Май[Неделя 1])","v":0},{"$f":"SUBTOTAL(109,Май[Сверхурочные])","v":0},{"$f":"SUBTOTAL(109,Май[Неделя 2])","v":0},{"$f":"SUBTOTAL(109,Май[[Сверхурочные ]])","v":0},{"$f":"SUBTOTAL(109,Май[Неделя 3])","v":0},{"$f":"SUBTOTAL(109,Май[[Сверхурочные  ]])","v":0},{"$f":"SUBTOTAL(109,Май[Неделя 4])","v":0},{"$f":"SUBTOTAL(109,Май[[Сверхурочные   ]])","v":0},{"$f":"SUBTOTAL(109,Май[Неделя 5])","v":0},{"$f":"SUBTOTAL(109,Май[[Сверхурочные    ]])","v":0}]
[null,"Итого за май: Нормативные часы",{"$f":"SUM(Май[[#Totals],[Неделя 1]],Май[[#Totals],[Неделя 2]],Май[[#Totals],[Неделя 3]],Май[[#Totals],[Неделя 4]],Май[[#Totals],[Неделя 5]])","v":0},"Итого за май: Сверхурочные",null,{"$f":"SUM(Май[[#Totals],[Сверхурочные]],Май[[#Totals],[Сверхурочные ]],Май[[#Totals],[Сверхурочные  ]],Май[[#Totals],[Сверхурочные   ]],Май[[#Totals],[Сверхурочные    ]])","v":0}]
[]
[null,"Июнь","Неделя 1","Сверхурочные","Неделя 2","Сверхурочные ","Неделя 3","Сверхурочные  ","Неделя 4","Сверхурочные   ","Неделя 5","Сверхурочные    "]
[null,"Понедельник"]
[null,"Вторник"]
[null,"Среда"]
[null,"Четверг"]
[null,"Пятница"]
[null,"Суббота"]
[null,"Воскресенье"]
[null,"Итого часов за неделю",{"$f":"SUBTOTAL(109,Июнь[Неделя 1])","v":0},{"$f":"SUBTOTAL(109,Июнь[Сверхурочные])","v":0},{"$f":"SUBTOTAL(109,Июнь[Неделя 2])","v":0},{"$f":"SUBTOTAL(109,Июнь[[Сверхурочные ]])","v":0},{"$f":"SUBTOTAL(109,Июнь[Неделя 3])","v":0},{"$f":"SUBTOTAL(109,Июнь[[Сверхурочные  ]])","v":0},{"$f":"SUBTOTAL(109,Июнь[Неделя 4])","v":0},{"$f":"SUBTOTAL(109,Июнь[[Сверхурочные   ]])","v":0},{"$f":"SUBTOTAL(109,Июнь[Неделя 5])","v":0},{"$f":"SUBTOTAL(109,Июнь[[Сверхурочные    ]])","v":0}]
[null,"Итого за июнь: Нормативные часы",{"$f":"SUM(Июнь[[#Totals],[Неделя 1]],Июнь[[#Totals],[Неделя 2]],Июнь[[#Totals],[Неделя 3]],Июнь[[#Totals],[Неделя 4]],Июнь[[#Totals],[Неделя 5]])","v":0},"Итого за июнь: Сверхурочные",null,{"$f":"SUM(Июнь[[#Totals],[Сверхурочные]],Июнь[[#Totals],[Сверхурочные ]],Июнь[[#Totals],[Сверхурочные  ]],Июнь[[#Totals],[Сверхурочные   ]],Июнь[[#Totals],[Сверхурочные    ]])","v":0}]
[]
[null,"Июль, август, сентябрь      Табель сотрудника (за день, неделю, месяц, год)"]
[null,"Июль","Неделя 1","Сверхурочные","Неделя 2","Сверхурочные ","Неделя 3","Сверхурочные  ","Неделя 4","Сверхурочные   ","Неделя 5","Сверхурочные    "]
[null,"Понедельник"]
[null,"Вторник"]
[null,"Среда"]
[null,"Четверг"]
[null,"Пятница"]
[null,"Суббота"]
[null,"Воскресенье"]
[null,"Итого часов за неделю",{"$f":"SUBTOTAL(109,Июль[Неделя 1])","v":0},{"$f":"SUBTOTAL(109,Июль[Сверхурочные])","v":0},{"$f":"SUBTOTAL(109,Июль[Неделя 2])","v":0},{"$f":"SUBTOTAL(109,Июль[[Сверхурочные ]])","v":0},{"$f":"SUBTOTAL(109,Июль[Неделя 3])","v":0},{"$f":"SUBTOTAL(109,Июль[[Сверхурочные  ]])","v":0},{"$f":"SUBTOTAL(109,Июль[Неделя 4])","v":0},{"$f":"SUBTOTAL(109,Июль[[Сверхурочные   ]])","v":0},{"$f":"SUBTOTAL(109,Июль[Неделя 5])","v":0},{"$f":"SUBTOTAL(109,Июль[[Сверхурочные    ]])","v":0}]
[null,"Итого за июль: Нормативные часы",{"$f":"SUM(Июль[[#Totals],[Неделя 1]],Июль[[#Totals],[Неделя 2]],Июль[[#Totals],[Неделя 3]],Июль[[#Totals],[Неделя 4]],Июль[[#Totals],[Неделя 5]])","v":0},"Итого за июль: Сверхурочные",null,{"$f":"SUM(Июль[[#Totals],[Сверхурочные]],Июль[[#Totals],[Сверхурочные ]],Июль[[#Totals],[Сверхурочные  ]],Июль[[#Totals],[Сверхурочные   ]],Июль[[#Totals],[Сверхурочные    ]])","v":0}]
[]
[null,"Август","Неделя 1","Сверхурочные","Неделя 2","Сверхурочные ","Неделя 3","Сверхурочные  ","Неделя 4","Сверхурочные   ","Неделя 5","Сверхурочные    "]
[null,"Понедельник"]
[null,"Вторник"]
[null,"Среда"]
[null,"Четверг"]
[null,"Пятница"]
[null,"Суббота"]
[null,"Воскресенье"]
[null,"Итого часов за неделю",{"$f":"SUBTOTAL(109,Август[Неделя 1])","v":0},{"$f":"SUBTOTAL(109,Август[Сверхурочные])","v":0},{"$f":"SUBTOTAL(109,Август[Неделя 2])","v":0},{"$f":"SUBTOTAL(109,Август[[Сверхурочные ]])","v":0},{"$f":"SUBTOTAL(109,Август[Неделя 3])","v":0},{"$f":"SUBTOTAL(109,Август[[Сверхурочные  ]])","v":0},{"$f":"SUBTOTAL(109,Август[Неделя 4])","v":0},{"$f":"SUBTOTAL(109,Август[[Сверхурочные   ]])","v":0},{"$f":"SUBTOTAL(109,Август[Неделя 5])","v":0},{"$f":"SUBTOTAL(109,Август[[Сверхурочные    ]])","v":0}]
[null,"Итого за август: Нормативные часы",{"$f":"SUM(Август[[#Totals],[Неделя 1]],Август[[#Totals],[Неделя 2]],Август[[#Totals],[Неделя 3]],Август[[#Totals],[Неделя 4]],Август[[#Totals],[Неделя 5]])","v":0},"Итого за август: Сверхурочные",null,{"$f":"SUM(Август[[#Totals],[Сверхурочные]],Август[[#Totals],[Сверхурочные ]],Август[[#Totals],[Сверхурочные  ]],Август[[#Totals],[Сверхурочные   ]],Август[[#Totals],[Сверхурочные    ]])","v":0}]
[]
[null,"Сентябрь","Неделя 1","Сверхурочные","Неделя 2","Сверхурочные ","Неделя 3","Сверхурочные  ","Неделя 4","Сверхурочные   ","Неделя 5","Сверхурочные    "]
[null,"Понедельник"]
[null,"Вторник"]
[null,"Среда"]
[null,"Четверг"]
[null,"Пятница"]
[null,"Суббота"]
[null,"Воскресенье"]
[null,"Итого часов за неделю",{"$f":"SUBTOTAL(109,Сентябрь[Неделя 1])","v":0},{"$f":"SUBTOTAL(109,Сентябрь[Сверхурочные])","v":0},{"$f":"SUBTOTAL(109,Сентябрь[Неделя 2])","v":0},{"$f":"SUBTOTAL(109,Сентябрь[[Сверхурочные ]])","v":0},{"$f":"SUBTOTAL(109,Сентябрь[Неделя 3])","v":0},{"$f":"SUBTOTAL(109,Сентябрь[[Сверхурочные  ]])","v":0},{"$f":"SUBTOTAL(109,Сентябрь[Неделя 4])","v":0},{"$f":"SUBTOTAL(109,Сентябрь[[Сверхурочные   ]])","v":0},{"$f":"SUBTOTAL(109,Сентябрь[Неделя 5])","v":0},{"$f":"SUBTOTAL(109,Сентябрь[[Сверхурочные    ]])","v":0}]
[null,"Итого за сентябрь: Нормативные часы",{"$f":"SUM(Сентябрь[[#Totals],[Неделя 1]],Сентябрь[[#Totals],[Неделя 2]],Сентябрь[[#Totals],[Неделя 3]],Сентябрь[[#Totals],[Неделя 4]],Сентябрь[[#Totals],[Неделя 5]])","v":0},"Итого за сентябрь: Сверхурочные",null,{"$f":"SUM(Сентябрь[[#Totals],[Сверхурочные]],Сентябрь[[#Totals],[Сверхурочные ]],Сентябрь[[#Totals],[Сверхурочные  ]],Сентябрь[[#Totals],[Сверхурочные   ]],Сентябрь[[#Totals],[Сверхурочные    ]])","v":0}]
[]
[null,"Октябрь, ноябрь, декабрь      Табель сотрудника (за день, неделю, месяц, год)"]
[null,"Октябрь","Неделя 1","Сверхурочные","Неделя 2","Сверхурочные ","Неделя 3","Сверхурочные  ","Неделя 4","Сверхурочные   ","Неделя 5","Сверхурочные    "]
[null,"Понедельник"]
[null,"Вторник"]
[null,"Среда"]
[null,"Четверг"]
[null,"Пятница"]
[null,"Суббота"]
[null,"Воскресенье"]
[null,"Итого часов за неделю",{"$f":"SUBTOTAL(109,Октябрь[Неделя 1])","v":0},{"$f":"SUBTOTAL(109,Октябрь[Сверхурочные])","v":0},{"$f":"SUBTOTAL(109,Октябрь[Неделя 2])","v":0},{"$f":"SUBTOTAL(109,Октябрь[[Сверхурочные ]])","v":0},{"$f":"SUBTOTAL(109,Октябрь[Неделя 3])","v":0},{"$f":"SUBTOTAL(109,Октябрь[[Сверхурочные  ]])","v":0},{"$f":"SUBTOTAL(109,Октябрь[Неделя 4])","v":0},{"$f":"SUBTOTAL(109,Октябрь[[Сверхурочные   ]])","v":0},{"$f":"SUBTOTAL(109,Октябрь[Неделя 5])","v":0},{"$f":"SUBTOTAL(109,Октябрь[[Сверхурочные    ]])","v":0}]
[null,"Итого за октябрь: Нормативные часы",{"$f":"SUM(Октябрь[[#Totals],[Неделя 1]],Октябрь[[#Totals],[Неделя 2]],Октябрь[[#Totals],[Неделя 3]],Октябрь[[#Totals],[Неделя 4]],Октябрь[[#Totals],[Неделя 5]])","v":0},"Итого за октябрь: Сверхурочные",null,{"$f":"SUM(Октябрь[[#Totals],[Сверхурочные]],Октябрь[[#Totals],[Сверхурочные ]],Октябрь[[#Totals],[Сверхурочные  ]],Октябрь[[#Totals],[Сверхурочные   ]],Октябрь[[#Totals],[Сверхурочные    ]])","v":0}]
[]
[null,"Ноябрь","Неделя 1","Сверхурочные","Неделя 2","Сверхурочные ","Неделя 3","Сверхурочные  ","Неделя 4","Сверхурочные   ","Неделя 5","Сверхурочные    "]
[null,"Понедельник"]
[null,"Вторник"]
[null,"Среда"]
[null,"Четверг"]
[null,"Пятница"]
[null,"Суббота"]
[null,"Воскресенье"]
[null,"Итого часов за неделю",{"$f":"SUBTOTAL(109,Ноябрь[Неделя 1])","v":0},{"$f":"SUBTOTAL(109,Ноябрь[Сверхурочные])","v":0},{"$f":"SUBTOTAL(109,Ноябрь[Неделя 2])","v":0},{"$f":"SUBTOTAL(109,Ноябрь[[Сверхурочные ]])","v":0},{"$f":"SUBTOTAL(109,Ноябрь[Неделя 3])","v":0},{"$f":"SUBTOTAL(109,Ноябрь[[Сверхурочные  ]])","v":0},{"$f":"SUBTOTAL(109,Ноябрь[Неделя 4])","v":0},{"$f":"SUBTOTAL(109,Ноябрь[[Сверхурочные   ]])","v":0},{"$f":"SUBTOTAL(109,Ноябрь[Неделя 5])","v":0},{"$f":"SUBTOTAL(109,Ноябрь[[Сверхурочные    ]])","v":0}]
[null,"Итого за ноябрь: Нормативные часы",{"$f":"SUM(Ноябрь[[#Totals],[Неделя 1]],Ноябрь[[#Totals],[Неделя 2]],Ноябрь[[#Totals],[Неделя 3]],Ноябрь[[#Totals],[Неделя 4]],Ноябрь[[#Totals],[Неделя 5]])","v":0},"Итого за ноябрь: Сверхурочные",null,{"$f":"SUM(Ноябрь[[#Totals],[Сверхурочные]],Ноябрь[[#Totals],[Сверхурочные ]],Ноябрь[[#Totals],[Сверхурочные  ]],Ноябрь[[#Totals],[Сверхурочные   ]],Ноябрь[[#Totals],[Сверхурочные    ]])","v":0}]
[]
[null,"Декабрь","Неделя 1","Сверхурочные","Неделя 2","Сверхурочные ","Неделя 3","Сверхурочные  ","Неделя 4","Сверхурочные   ","Неделя 5","Сверхурочные    "]
[null,"Понедельник"]
[null,"Вторник"]
[null,"Среда"]
[null,"Четверг"]
[null,"Пятница"]
[null,"Суббота"]
[null,"Воскресенье"]
[null,"Итого часов за неделю",{"$f":"SUBTOTAL(109,Декабрь[Неделя 1])","v":0},{"$f":"SUBTOTAL(109,Декабрь[Сверхурочные])","v":0},{"$f":"SUBTOTAL(109,Декабрь[Неделя 2])","v":0},{"$f":"SUBTOTAL(109,Декабрь[[Сверхурочные ]])","v":0},{"$f":"SUBTOTAL(109,Декабрь[Неделя 3])","v":0},{"$f":"SUBTOTAL(109,Декабрь[[Сверхурочные  ]])","v":0},{"$f":"SUBTOTAL(109,Декабрь[Неделя 4])","v":0},{"$f":"SUBTOTAL(109,Декабрь[[Сверхурочные   ]])","v":0},{"$f":"SUBTOTAL(109,Декабрь[Неделя 5])","v":0},{"$f":"SUBTOTAL(109,Декабрь[[Сверхурочные    ]])","v":0}]
[null,"Итого за декабрь: Нормативные часы",{"$f":"SUM(Декабрь[[#Totals],[Неделя 1]],Декабрь[[#Totals],[Неделя 2]],Декабрь[[#Totals],[Неделя 3]],Декабрь[[#Totals],[Неделя 4]],Декабрь[[#Totals],[Неделя 5]])","v":0},"Итого за декабрь: Сверхурочные",null,{"$f":"SUM(Декабрь[[#Totals],[Сверхурочные]],Декабрь[[#Totals],[Сверхурочные ]],Декабрь[[#Totals],[Сверхурочные  ]],Декабрь[[#Totals],[Сверхурочные   ]],Декабрь[[#Totals],[Сверхурочные    ]])","v":0}]